bitfinex-derivatives/quotes_SOLF0:USTF0_20250520
["timestamp","ask_amount","ask_price","bid_price","bid_amount"]
[1747761944263,0.0378248,167.06,167.04,5.9841]
[1747761944463,0.0378248,167.06,167.03,1.06492974]
[1747761945168,0.0378248,167.06,167.03,0.0452528]
[1747761946264,6.0215248,167.06,167.03,0.0452528]
[1747761947669,6.0215248,167.06,167.03,6.0296528]
[1747761948469,5.9838,167.05,167.03,0.0452528]
[1747761948673,0.0378248,167.06,167.03,0.0452528]
[1747761949167,5.9841,167.05,167.03,0.0452528]
[1747761949362,0.0378248,167.06,167.03,0.0452528]
[1747761950076,5.9838,167.05,167.03,0.0452528]
[1747761951270,5.9842,167.04,167.03,0.0452528]
[1747761951574,0.0378248,167.06,167.03,0.0452528]
[1747761952574,5.9841,167.05,167.03,0.0452528]
[1747761952874,10.0435173,167.06,167.03,0.0452528]
[1747761953176,5.9842,167.05,167.03,0.0452528]
[1747761953366,95.44,167.04,167.03,0.0452528]
[1747761953774,101.4242,167.04,167.03,0.0452528]
[1747761955876,5.985,167.02,166.97,1.01967694]
[1747761956077,4.0657,167.03,166.98,5.9861]
[1747761956376,6.0981,167.03,166.98,5.9861]
[1747761956575,5.9852,167.02,166.98,5.9861]
[1747761956967,6.02793659,167.02,166.98,6.02970072]
[1747761957581,5.9853,167.01,166.98,6.02970072]
[1747761957780,0.04273659,167.02,166.98,0.04360072]
[1747761958173,5.9855,167.01,166.98,0.04360072]
[1747761958375,0.04273659,167.02,166.98,0.04360072]
[1747761958780,5.9856,167.01,166.98,0.04360072]
[1747761959178,0.04273659,167.02,166.98,0.04360072]
[1747761960082,0.04273659,167.02,167.01,5.9853]
[1747761970191,97.301,167.1,167.0,96.75680142]
[1747761970394,99.3912,167.13,167.0,125.2656925]
[1747761970597,5.9819,167.11,167.0,105.2656925]
[1747761970895,99.3912,167.13,167.07,5.9829]
[1747761971289,0.03837413,167.12,167.08,0.04181577]
[1747761971596,0.04131491,167.12,167.08,0.04186451]
[1747761971796,0.04131491,167.12,167.11,5.9817]
[1747761972290,0.04131491,167.12,167.1,5.9818]
[1747761972491,0.04131491,167.12,167.08,0.04186451]
[1747761972792,0.04131491,167.12,167.1,5.9819]
[1747761972994,0.04131491,167.12,167.08,0.04186451]
[1747761973895,0.04131491,167.12,167.08,1.53768984]
[1747761974389,0.04131491,167.12,167.09,5.9824]
[1747761975193,6.02291491,167.12,167.08,7.52028984]
[1747761975495,6.02291491,167.12,167.08,0.04186451]
[1747761976097,0.04131491,167.12,167.08,0.04186451]
[1747761976795,0.04131491,167.12,167.09,5.9821]
[1747761977094,0.04131491,167.12,167.08,10.04755701]
[1747761977795,0.04131491,167.12,167.11,5.9817]
[1747761979201,95.26,167.18,167.15,5.98]
[1747761979399,95.22,167.21,167.11,95.22]
[1747761979697,95.22,167.21,167.12,2.0581]
[1747761979892,95.22,167.24,167.14,10.0056925]
[1747761980092,95.22,167.24,167.15,95.22]
[1747761980292,0.04448304,167.21,167.18,0.0426987]
[1747761980594,0.04448304,167.21,167.2,5.9785]
[1747761984599,95.2,167.29,167.19,97.2792]
[1747761984997,5.9757,167.28,167.19,97.2792]
[1747761985300,95.2,167.29,167.25,5.9764]
[1747761985502,101.21604648,167.29,167.25,6.01639531]
[1747761985702,95.24054648,167.29,167.26,5.9762]
[1747761986102,95.24054648,167.29,167.25,0.03999531]
[1747761986304,0.04054648,167.29,167.25,0.03999531]
[1747761987200,5.9757,167.28,167.25,0.03999531]
[1747761987395,0.04054648,167.29,167.25,6.01639531]
[1747761987601,0.04054648,167.29,167.25,0.03999531]
[1747761988404,5.9759,167.28,167.25,0.03999531]
[1747761988704,0.04054648,167.29,167.25,0.03999531]
[1747761988902,5.9757,167.28,167.25,0.03999531]
[1747761989506,0.04054648,167.29,167.25,0.03999531]
[1747761989708,5.9764,167.26,167.25,0.03999531]
[1747761994905,8.0134,167.27,167.25,0.03999531]
[1747761995103,94.98,167.28,167.25,0.03999531]
[1747761995512,0.04054648,167.29,167.25,0.03999531]
[1747761996010,5.976,167.28,167.25,0.03999531]
[1747761996712,5.976,167.28,167.25,6.01669531]
[1747761997309,6.01594648,167.29,167.26,5.9763]
[1747761999412,0.04054648,167.29,167.25,0.03999531]
[1747762000514,5.9762,167.27,167.25,0.03999531]
[1747762001114,5.9758,167.28,167.25,0.03999531]
[1747762001617,5.976,167.27,167.25,6.01659531]
[1747762002818,0.04054648,167.29,167.26,5.9763]
[1747762003517,6.01604648,167.29,167.26,5.9763]
[1747762004815,5.9757,167.28,167.26,5.9763]
[1747762005808,5.9757,167.28,167.25,6.01659531]
[1747762006220,0.04054648,167.29,167.27,5.976]
[1747762006612,0.04054648,167.29,167.25,0.03999531]
[1747762007120,0.04054648,167.29,167.28,5.9756]
[1747762007713,0.04054648,167.29,167.27,5.9759]
[1747762008219,0.04054648,167.29,167.25,0.03999531]
[1747762008420,0.04054648,167.29,167.28,5.9756]
[1747762015029,4.648e-05,167.29,167.28,5.9756]
[1747762017832,4.648e-05,167.29,167.28,7.46969525]
[1747762019736,94.92,167.37,167.35,5.9731]
[1747762019930,5.972,167.39,167.3,94.74]
[1747762020129,100.7731,167.4,167.3,94.74]
[1747762020934,0.04030715,167.37,167.33,0.04143883]
[1747762021643,0.04030715,167.37,167.36,5.9728]
[1747762023841,5.973,167.36,167.33,0.04143883]
[1747762024342,0.04030715,167.37,167.33,0.04143883]
[1747762025043,5.9735,167.34,167.33,0.04143883]
[1747762027243,94.74,167.36,167.33,0.04143883]
[1747762027645,6.01290715,167.37,167.34,5.9733]
[1747762028045,5.9728,167.36,167.34,5.9733]
[1747762028245,0.04030715,167.37,167.33,0.04143883]
[1747762028952,0.04030715,167.37,167.33,6.01503883]
[1747762029150,0.04030715,167.37,167.33,0.04143883]
[1747762030150,0.04030715,167.37,167.35,5.973]
[1747762030450,0.04030715,167.37,167.33,0.04143883]
[1747762030643,0.04030715,167.37,167.35,5.9731]
[1747762031546,0.04030715,167.37,167.33,0.04143883]
[1747762032251,0.04030715,167.37,167.34,5.9732]
[1747762032949,0.04030715,167.37,167.33,0.04143883]
[1747762033551,0.04030715,167.37,167.36,5.9728]
[1747762034944,0.04030715,167.37,167.35,5.973]
[1747762035252,0.04030715,167.37,167.33,0.04143883]
[1747762035452,0.04030715,167.37,167.35,5.973]
[1747762036152,0.04030715,167.37,167.36,5.9728]
[1747762036858,0.04030715,167.37,167.35,5.973]
[1747762038053,0.04030715,167.37,167.36,5.9728]
[1747762038248,0.04030715,167.37,167.33,0.04143883]
[1747762038448,6.01280715,167.37,167.33,0.04143883]
[1747762039057,5.9729,167.36,167.33,0.04143883]
[1747762039267,0.04030715,167.37,167.34,5.9733]
[1747762039757,6.01290715,167.37,167.34,5.9733]
[1747762041056,0.04030715,167.37,167.33,0.04143883]
[1747762041556,5.9735,167.34,167.33,0.04143883]
[1747762041758,104.7256925,167.35,167.3,5.9749]
[1747762042051,104.7256925,167.35,167.26,1.01967694]
[1747762042256,104.7256925,167.35,167.28,5.9755]
[1747762042756,10.0056925,167.32,167.25,5.9765]
[1747762042957,98.8252,167.31,167.22,3.09417694]
[1747762043459,5.975,167.3,167.22,3.09417694]
[1747762043648,98.8252,167.31,167.22,3.09417694]
[1747762043851,0.04569628,167.28,167.25,0.04133429]
[1747762044558,6.02159628,167.28,167.25,6.01803429]
[1747762044961,0.04569628,167.28,167.25,0.04133429]
[1747762045165,5.9762,167.27,167.25,0.04133429]
[1747762046160,6.02139628,167.28,167.25,6.01803429]
[1747762047458,5.9762,167.27,167.25,0.04133429]
[1747762047961,0.04569628,167.28,167.25,0.04133429]
[1747762048162,0.04569628,167.28,167.27,5.976]
[1747762048354,0.04569628,167.28,167.25,0.04133429]
[1747762048554,0.04569628,167.28,167.26,5.9761]
[1747762050063,0.04569628,167.28,167.27,5.976]
[1747762050757,0.04569628,167.28,167.26,5.9762]
[1747762051861,0.04569628,167.28,167.27,5.976]
[1747762052265,0.04569628,167.28,167.25,0.04133429]
[1747762052554,6.02139628,167.28,167.25,0.04133429]
[1747762052760,0.04569628,167.28,167.25,0.04133429]
[1747762053056,5.9762,167.27,167.25,0.04133429]
[1747762053765,5.9762,167.27,167.25,6.01793429]
[1747762054161,6.02139628,167.28,167.25,6.01793429]
[1747762054561,6.02139628,167.28,167.25,0.04133429]
[1747762054765,5.976,167.27,167.25,0.04133429]
[1747762055258,0.04569628,167.28,167.25,6.01803429]
[1747762055654,0.04569628,167.28,167.26,5.9762]
[1747762056170,6.02139628,167.28,167.25,6.01793429]
[1747762056857,5.976,167.27,167.25,6.01793429]
[1747762057968,6.02149628,167.28,167.25,6.01793429]
[1747762058867,5.976,167.27,167.25,0.04133429]
[1747762059266,0.04569628,167.28,167.25,0.04133429]
[1747762059466,5.9764,167.26,167.25,0.04133429]
[1747762060169,94.62,167.27,167.25,0.04133429]
[1747762060170,100.5963,167.27,167.25,0.04133429]
[1747762060370,94.62,167.27,167.26,5.9764]
[1747762060669,6.02129628,167.28,167.26,5.9764]
[1747762061474,6.02129628,167.28,167.25,6.01783429]
[1747762062776,5.9761,167.27,167.25,0.04133429]
[1747762062966,0.04569628,167.28,167.25,0.04133429]
[1747762063271,0.04569628,167.28,167.26,5.9764]
[1747762063466,0.04569628,167.28,167.25,0.04133429]
[1747762064567,5.976,167.27,167.25,6.01793429]
[1747762064763,5.976,167.27,167.25,0.04133429]
[1747762065072,5.9764,167.26,167.25,0.04133429]
[1747762066073,5.9761,167.27,167.25,0.04133429]
[1747762066269,0.04569628,167.28,167.25,0.04133429]
[1747762066573,5.9764,167.26,167.25,0.04133429]
[1747762068177,5.9761,167.27,167.25,0.04133429]
[1747762071175,5.9761,167.27,167.25,6.01803429]
[1747762071381,6.02149628,167.28,167.25,6.01803429]
[1747762071680,0.04569628,167.28,167.25,6.01803429]
[1747762071873,0.04569628,167.28,167.26,5.9763]
[1747762073083,6.02139628,167.28,167.26,5.9763]
[1747762073586,6.02139628,167.28,167.25,6.01793429]
[1747762074285,5.976,167.27,167.25,6.01793429]
[1747762074486,0.04569628,167.28,167.25,0.04133429]
[1747762074886,5.9764,167.26,167.25,0.04133429]
[1747762076588,0.04569628,167.28,167.25,0.04133429]
[1747762077687,6.02149628,167.28,167.26,5.9763]
[1747762077985,6.02149628,167.28,167.25,0.04133429]
[1747762078284,6.02149628,167.28,167.25,6.01773429]
[1747762078986,5.976,167.27,167.25,6.01773429]
[1747762079988,6.02139628,167.28,167.25,6.01773429]
[1747762082381,0.04569628,167.28,167.25,0.04133429]
[1747762083586,6.02149628,167.28,167.25,6.01783429]
[1747762084884,0.04569628,167.28,167.25,6.01783429]
[1747762085096,5.976,167.27,167.25,0.04133429]
[1747762085284,0.04569628,167.28,167.25,0.04133429]
[1747762085484,0.04569628,167.28,167.25,6.01773429]
[1747762085685,0.04569628,167.28,167.25,0.04133429]
[1747762086085,0.04569628,167.28,167.27,5.976]
[1747762087091,94.5,167.37,167.34,5.9733]
[1747762087391,94.5,167.37,167.27,95.99464928]
[1747762087589,94.5,167.37,167.28,1.953]
[1747762087792,94.5,167.37,167.35,5.9729]
[1747762087982,94.5,167.37,167.28,1.953]
[1747762088185,0.04305428,167.34,167.33,5.9736]
[1747762093400,5.428e-05,167.34,167.33,7.46726994]
[1747762096302,5.428e-05,167.34,167.33,5.9736]
[1747762103204,5.428e-05,167.34,167.32,5.9741]
[1747762105106,5.428e-05,167.34,167.33,5.9739]
[1747762109307,5.428e-05,167.34,167.31,0.04538662]
[1747762110607,104.44574678,167.34,167.24,1.01967694]
[1747762110815,2.0914,167.33,167.24,1.01967694]
[1747762111113,2.0914,167.33,167.25,5.9766]
[1747762111304,1.9339,167.32,167.24,1.01967694]
[1747762111628,0.04209092,167.3,167.26,0.03785338]
[1747762111803,94.48209092,167.3,167.26,0.03785338]
[1747762112200,94.48209092,167.3,167.27,5.9757]
[1747762112504,94.48209092,167.3,167.26,0.03785338]
[1747762112705,100.45709092,167.3,167.26,0.03785338]
[1747762112906,94.48209092,167.3,167.26,0.03785338]
[1747762113512,0.04209092,167.3,167.26,0.03785338]
[1747762113713,6.01719092,167.3,167.27,5.9757]
[1747762114308,0.04209092,167.3,167.27,5.9759]
[1747762115007,6.01719092,167.3,167.27,5.9759]
[1747762118718,0.04209092,167.3,167.26,0.03785338]
[1747762119410,0.04209092,167.3,167.29,5.9753]
[1747762119813,94.34,167.37,167.28,94.34]
[1747762120117,100.3126,167.37,167.34,5.9733]
[1747762120319,5.9726,167.37,167.28,94.34]
[1747762120515,5.9722,167.38,167.35,5.9731]
[1747762120812,6.01272215,167.38,167.35,0.04162751]
[1747762121117,6.01272215,167.38,167.35,6.01462751]
[1747762121418,6.01272215,167.38,167.35,0.04162751]
[1747762122018,0.04052215,167.38,167.37,5.9724]
[1747762122217,0.04052215,167.38,167.35,0.04162751]
[1747762123208,0.04052215,167.38,167.36,5.9726]
[1747762124423,0.04052215,167.38,167.37,5.9724]
[1747762125733,0.04052215,167.38,167.36,5.9727]
[1747762126132,0.04052215,167.38,167.35,0.04162751]
[1747762126734,6.01282215,167.38,167.35,0.04162751]
[1747762128834,5.9725,167.37,167.35,0.04162751]
[1747762129635,5.9728,167.36,167.35,0.04162751]
[1747762130526,0.04052215,167.38,167.3,1.4938163]
[1747762130732,5.9742,167.33,167.3,1.4938163]
[1747762131634,0.03939019,167.33,167.3,1.53867639]
[1747762131932,0.03939019,167.33,167.3,0.04486009]
[1747762132832,0.03939019,167.33,167.32,5.9742]
[1747762138037,9.019e-05,167.33,167.32,5.9742]
[1747762139041,9.019e-05,167.33,167.32,7.4678341]
[1747762140546,9.019e-05,167.33,167.32,5.9742]
[1747762143045,9.019e-05,167.33,167.32,7.46776158]
[1747762146439,106.1606,167.42,167.4,5.9713]
[1747762146642,100.1899,167.42,167.32,11.45267245]
[1747762146842,5.9711,167.41,167.38,5.9721]
[1747762147347,0.04163581,167.41,167.38,6.01730082]
[1747762147543,6.01273581,167.41,167.38,6.01730082]
[1747762147744,6.01273581,167.41,167.39,5.9716]
[1747762148046,0.04163581,167.41,167.39,5.9716]
[1747762148343,6.01293581,167.41,167.38,0.04520082]
[1747762148540,6.01293581,167.41,167.38,6.01720082]
[1747762148742,6.01293581,167.41,167.38,0.04520082]
[1747762149450,6.01293581,167.41,167.38,6.01710082]
[1747762149650,5.9714,167.4,167.38,6.01710082]
[1747762149850,0.04163581,167.41,167.38,6.01710082]
[1747762150150,6.01293581,167.41,167.38,6.01710082]
[1747762150652,0.04163581,167.41,167.38,0.04520082]
[1747762151749,5.9714,167.4,167.38,0.04520082]
[1747762151951,0.04163581,167.41,167.38,0.04520082]
[1747762152149,5.9717,167.39,167.38,0.04520082]
[1747762152749,5.9725,167.37,167.32,1.49359291]
[1747762153346,5.9725,167.37,167.34,5.9733]
[1747762153853,0.03915827,167.37,167.34,6.01126381]
[1747762154155,9.99826914,167.37,167.25,1.34221802]
[1747762154447,5.9732,167.35,167.26,1.49397985]
[1747762154650,94.16,167.34,167.26,1.49397985]
[1747762155155,0.04148996,167.33,167.32,5.9741]
[1747762159260,8.996e-05,167.33,167.32,5.9741]
[1747762163152,8.996e-05,167.33,167.32,7.46790645]
[1747762163359,8.996e-05,167.33,167.32,101.62790645]
[1747762167164,98.1987,167.42,167.32,95.65380645]
[1747762167772,5.9716,167.4,167.32,95.65380645]
[1747762168068,0.04475505,167.38,167.32,95.65380645]
[1747762168266,0.04475505,167.38,167.34,0.03802322]
[1747762168470,0.04475505,167.38,167.35,1.49380645]
[1747762168873,0.04475505,167.38,167.37,5.9724]
[1747762169371,0.04475505,167.38,167.35,1.49380645]
[1747762169372,5.9728,167.36,167.35,1.49380645]
[1747762169580,2.0117,167.37,167.31,1.01967694]
[1747762170174,2.0117,167.37,167.26,2.01277035]
[1747762170175,9.96703259,167.32,167.26,2.01277035]
[1747762170469,100.17396258,167.31,167.27,6.01439148]
[1747762170876,94.19916258,167.31,167.27,6.01439148]
[1747762171379,94.19916258,167.31,167.27,0.03869148]
[1747762172265,0.03916258,167.31,167.27,0.03869148]
[1747762172876,0.03916258,167.31,167.29,5.975]
[1747762174978,0.03916258,167.31,167.28,5.9755]
[1747762176073,0.03916258,167.31,167.29,5.9751]
[1747762177381,0.03916258,167.31,167.3,5.9749]
[1747762177579,0.03916258,167.31,167.27,0.03869148]
[1747762178480,0.03916258,167.31,167.3,5.9749]
[1747762184883,0.03916258,167.31,167.29,5.9751]
[1747762185382,0.03916258,167.31,167.3,5.9749]
[1747762185586,0.03916258,167.31,167.27,0.03869148]
[1747762185979,0.03916258,167.31,167.3,5.9749]
[1747762188084,0.03916258,167.31,167.29,5.9751]
[1747762188285,0.03916258,167.31,167.27,0.03869148]
[1747762188684,6.01396258,167.31,167.28,5.9754]
[1747762189693,5.9749,167.3,167.28,5.9754]
[1747762189890,95.15916258,167.31,167.27,6.01449148]
[1747762190381,5.9754,167.29,167.27,0.03869148]
[1747762191785,95.15916258,167.31,167.27,0.03869148]
[1747762192280,0.03916258,167.31,167.3,5.9749]
[1747762200903,6.258e-05,167.31,167.3,5.9749]
[1747762201203,95.12,167.41,167.3,106.58104032]
[1747762201415,518.5447,167.44,167.33,9.96703259]
[1747762201617,95.12,167.43,167.34,99.2388]
[1747762202113,14.85918199,167.47,167.42,9.96703259]
[1747762202313,14.85918199,167.47,167.46,5.9692]
[1747762203807,0.0386729,167.48,167.47,5.9689]
[1747762204010,94.38,167.56,167.45,94.38]
[1747762204213,125.14084633,167.61,167.46,2.0736]
[1747762204407,109.23387368,167.61,167.46,17.98057265]
[1747762205012,0.0403244,167.55,167.52,0.03952613]
[1747762205211,0.0403244,167.55,167.54,5.9661]
[1747762205513,0.0403244,167.55,167.52,94.37952613]
[1747762205709,0.0403244,167.55,167.52,100.34652613]
[1747762205906,0.0403244,167.55,167.52,0.03952613]
[1747762206318,5.9666,167.54,167.52,0.03952613]
[1747762206517,0.0403244,167.55,167.52,0.03952613]
[1747762206718,5.9667,167.53,167.52,0.03952613]
[1747762208717,94.34,167.54,167.44,94.34]
[1747762208918,4.0647,167.53,167.44,94.34]
[1747762209309,4.0647,167.53,167.43,2.0341]
[1747762209609,4.0647,167.53,167.45,5.9694]
[1747762209809,0.04054665,167.5,167.46,0.04290754]
[1747762210413,5.9682,167.49,167.46,0.04290754]
[1747762211020,0.04054665,167.5,167.46,0.04290754]
[1747762211417,5.9689,167.47,167.46,0.04290754]
[1747762212524,5.9686,167.48,167.46,0.04290754]
[1747762213224,5.9689,167.47,167.46,0.04290754]
[1747762215422,5.9686,167.48,167.46,0.04290754]
[1747762215725,94.36054665,167.5,167.46,0.04290754]
[1747762215921,5.9689,167.47,167.46,0.04290754]
[1747762217630,94.36054665,167.5,167.38,96.237]
[1747762217815,94.32,167.49,167.38,96.237]
[1747762218017,5.97,167.44,167.41,5.9709]
[1747762218219,94.32,167.49,167.38,96.237]
[1747762218420,0.04503917,167.45,167.42,0.04151338]
[1747762218622,5.9702,167.44,167.42,0.04151338]
[1747762219021,0.04503917,167.45,167.42,0.04151338]
[1747762219629,0.04503917,167.45,167.43,94.32]
[1747762219831,4.0647,167.53,167.47,5.9685]
[1747762220020,4.0647,167.53,167.43,94.32]
[1747762220221,5.9681,167.5,167.43,94.32]
[1747762220734,0.04052287,167.48,167.45,0.04470902]
[1747762222932,0.04052287,167.48,167.45,6.01400902]
[1747762223737,0.04052287,167.48,167.46,5.9692]
[1747762225632,5.9689,167.47,167.45,0.04470902]
[1747762227233,5.9692,167.46,167.45,0.04470902]
[1747762227633,1.9214,167.47,167.37,96.2722]
[1747762227834,1.9214,167.47,167.38,5.9719]
[1747762228133,15.90697265,167.51,167.37,94.3]
[1747762228329,5.9691,167.47,167.43,5.97]
[1747762228531,6.00776581,167.47,167.43,6.00980442]
[1747762229026,0.03866581,167.47,167.43,0.03980442]
[1747762229634,0.03866581,167.47,167.46,5.9692]
[1747762230333,6.581e-05,167.47,167.46,5.9692]
[1747762241455,5.96896581,167.47,167.43,0.03980442]
[1747762242159,5.96896581,167.47,167.44,5.9697]
[1747762242564,5.96896581,167.47,167.44,5.9699]
[1747762242955,5.9692,167.46,167.43,0.03980442]
[1747762243161,94.06006581,167.47,167.43,0.03980442]
[1747762243549,5.9699,167.44,167.43,0.03980442]
[1747762243752,15.90697265,167.46,167.37,0.99651308]
[1747762243959,94.06,167.45,167.37,0.99651308]
[1747762244364,94.06,167.45,167.36,5.9726]
[1747762244562,94.06,167.45,167.31,0.99651308]
[1747762244863,0.03789958,167.4,167.36,0.04259677]
[1747762245066,94.09789958,167.4,167.36,0.04259677]
[1747762246365,5.9732,167.35,167.32,5.9741]
[1747762246862,94.06,167.36,167.31,0.99651308]
[1747762247159,94.06,167.36,167.24,515.88]
[1747762247160,94.06,167.36,167.25,0.99651308]
[1747762247357,0.04405531,167.32,167.29,0.03941486]
[1747762247559,94.12405531,167.32,167.29,0.03941486]
[1747762248367,5.9748,167.31,167.29,0.03941486]
[1747762248665,94.12405531,167.32,167.29,0.03941486]
[1747762248867,5.9749,167.3,167.29,0.03941486]
[1747762249862,8.0728,167.31,167.29,0.03941486]
[1747762250169,2.0981,167.31,167.29,0.03941486]
[1747762251764,2.0981,167.31,167.3,5.9749]
[1747762252767,2.0981,167.31,167.29,0.03941486]
[1747762253164,2.0981,167.31,167.3,5.9749]
[1747762253370,0.04405531,167.32,167.29,0.03941486]
[1747762254065,0.04405531,167.32,167.31,5.9746]
[1747762254670,0.04405531,167.32,167.31,100.0946]
[1747762255070,0.04405531,167.32,167.31,5.9746]
[1747762260467,5.531e-05,167.32,167.31,5.9746]
[1747762269380,5.531e-05,167.32,167.31,15.9385295]
[1747762269578,98.36,167.42,167.31,9.9639295]
[1747762269882,4.1183,167.43,167.31,9.9639295]
[1747762270066,4.1183,167.43,167.32,1.9228]
[1747762270274,4.1183,167.43,167.34,9.9639295]
[1747762270472,2.0731,167.43,167.34,9.9639295]
[1747762270680,0.03857406,167.4,167.39,5.9717]
[1747762271180,7.406e-05,167.4,167.39,5.9717]
[1747762271780,6.1227,167.51,167.39,5.98]
[1747762271978,2.0156,167.51,167.4,1.9516]
[1747762272173,178.17655985,167.55,167.51,5.9673]
[1747762272375,178.17655985,167.55,167.46,98.36]
[1747762272575,0.04550249,167.52,167.46,98.36]
[1747762272779,0.04550249,167.52,167.49,0.04541959]
[1747762272981,5.9674,167.51,167.49,0.04057554]
[1747762273482,5.9678,167.5,167.49,0.04057554]
[1747762274481,0.04387144,167.52,167.49,0.04057554]
[1747762275581,5.9678,167.5,167.49,0.04057554]
[1747762276579,104.3078,167.5,167.4,1.9516]
[1747762276789,5.97,167.44,167.39,98.34]
[1747762277082,4.0726,167.49,167.39,98.34]
[1747762277278,4.0726,167.49,167.37,98.32]
[1747762277784,0.04553389,167.45,167.41,0.04233937]
[1747762277981,98.32,167.44,167.41,0.04233937]
[1747762278279,5.9724,167.38,167.34,105.29001308]
[1747762278873,5.9724,167.38,167.35,5.973]
[1747762279080,6.01326841,167.38,167.35,6.01572117]
[1747762279484,0.04086841,167.38,167.35,0.04272117]
[1747762280072,5.9728,167.36,167.35,0.04272117]
[1747762281577,104.3,167.36,167.26,5.9763]
[1747762281784,2.0105,167.35,167.24,98.32]
[1747762282483,0.04416079,167.33,167.29,0.04275988]
[1747762282678,0.04416079,167.33,167.31,5.9745]
[1747762284280,0.04416079,167.33,167.29,0.04275988]
[1747762284977,0.04416079,167.33,167.31,5.9743]
[1747762285281,0.04416079,167.33,167.29,0.04275988]
[1747762285483,0.04416079,167.33,167.32,5.9742]
[1747762287582,6.079e-05,167.33,167.32,5.9742]
[1747762287790,6.079e-05,167.33,167.32,105.6542]
[1747762291280,6.079e-05,167.33,167.32,5.9742]
[1747762291481,6.079e-05,167.33,167.31,5.9745]
[1747762291787,6.079e-05,167.33,167.3,99.68]
[1747762292281,6.079e-05,167.33,167.32,5.9742]
[1747762295579,99.68,167.46,167.32,1.9888]
[1747762296077,5.9702,167.44,167.42,5.9706]
[1747762296388,5.9702,167.44,167.37,99.68]
[1747762296583,5.9702,167.44,167.41,6.01693808]
[1747762296784,5.9702,167.44,167.41,6.01637016]
[1747762297088,6.01227693,167.44,167.41,6.01637016]
[1747762297282,6.01227693,167.44,167.41,0.04547016]
[1747762297488,0.04207693,167.44,167.41,0.04547016]
[1747762297782,121.61689904,167.44,167.31,121.6681]
[1747762298085,115.59482211,167.44,167.34,5.9733]
[1747762298389,115.59482211,167.44,167.31,0.99651308]
[1747762298682,115.59482211,167.44,167.36,0.04279401]
[1747762298888,0.03799137,167.39,167.33,5.9736]
[1747762299084,99.69799137,167.39,167.33,5.9736]
[1747762299283,3.9635,167.38,167.31,0.99651308]
[1747762300090,5.9742,167.32,167.29,1.34460968]
[1747762300287,6.01447042,167.32,167.26,99.66]
[1747762300586,6.01447042,167.32,167.28,5.9754]
[1747762300890,0.04027042,167.32,167.28,5.9754]
[1747762301591,0.04027042,167.32,167.26,99.66]
[1747762302083,0.04027042,167.32,167.29,5.975]
[1747762302493,0.04027042,167.32,167.26,99.66]
[1747762304494,0.04027042,167.32,167.29,5.975]
[1747762304996,0.04027042,167.32,167.26,99.66]
[1747762306497,0.04027042,167.32,167.3,5.9747]
[1747762307195,0.04027042,167.32,167.29,5.9752]
[1747762307796,6.01457042,167.32,167.28,5.9756]
[1747762309397,0.04027042,167.32,167.29,5.9751]
[1747762310299,6.01467042,167.32,167.28,5.9755]
[1747762310897,6.01467042,167.32,167.25,99.7]
[1747762311399,6.01467042,167.32,167.29,5.9753]
[1747762311601,6.01467042,167.32,167.25,99.7]
[1747762311899,0.04027042,167.32,167.26,5.9762]
[1747762312496,5.9751,167.3,167.26,5.9762]
[1747762313099,99.7,167.31,167.26,5.9762]
[1747762313298,0.04027042,167.32,167.23,99.72]
[1747762313499,0.03985254,167.29,167.23,99.72]
[1747762314001,0.03985254,167.29,167.28,5.9756]
[1747762318504,0.03985254,167.29,167.27,5.9758]
[1747762319205,0.03985254,167.29,167.28,5.9756]
[1747762319806,0.03985254,167.29,167.24,98.42]
[1747762320098,0.03985254,167.29,167.21,102.425]
[1747762320305,0.03985254,167.29,167.28,5.9756]
[1747762321703,0.03985254,167.29,167.27,5.9759]
[1747762322605,0.03985254,167.29,167.28,5.9756]
[1747762325508,0.03985254,167.29,167.25,1.49414172]
[1747762326010,5.9759,167.28,167.25,5.9765]
[1747762327614,5.9762,167.27,167.24,5.977]
[1747762328814,98.44,167.28,167.23,1.49414172]
[1747762329211,5.9762,167.27,167.23,1.49414172]
[1747762329416,98.44,167.28,167.21,5.9779]
[1747762329618,0.04287368,167.26,167.19,1.49414172]
[1747762330813,0.04287368,167.26,167.25,5.9767]
[1747762334924,0.04287368,167.26,167.25,7.47084172]
[1747762335416,7.368e-05,167.26,167.25,7.47084172]
[1747762337426,7.368e-05,167.26,167.25,9.53124172]
[1747762338626,104.4128,167.36,167.33,5.9736]